Cogmind - Beta 13 @@@ ROGUE MODE // 2024.06.30 @ 22:54:25 Player: mournfully Result: Destroyed by G-47 Trooper with Particle Gun Performance ------------- Evolutions (1) 500 Regions Visited (6) 1200 Robots Destroyed (93) 465 Value Destroyed (1941) 1941 Prototype IDs (26) 520 Alien Tech Used (0) 0 Bonus (267) 267 TOTAL SCORE: 4893 Bonus ------- High Alert Combat Kills 27 Follower Combat Kills 85 Aligned with FarCom 300 Friendly Fire -145 Cogmind --------- Core Integrity 0/400 Matter 215/300 Energy 250/250 System Corruption 0% Temperature Cool (32) Movement Treading (320) Ox2 Location -8/Mines Parts ------- > --- POWER (1) -------- Ion Engine > --- PROPULSION (3) --- Light Treads Light Treads Improved Treads > --- UTILITY (3) ------ Cargo Storage Unit Hardened Medium Armor Plating > --- WEAPON (2) ------- Improved Assault Rifle Mini Grenade Launcher > --- INVENTORY (30) --- Ion Engine Improved Ion Engine Light Nuclear Core Aluminum Leg High-capacity Storage Unit Superbattery (1500) High-capacity Matter Pod (200) Structural Scanner Improved Signal Interpreter Improved Signal Interpreter Seismic Detector Hardened Medium Armor Plating Tractor Beam Small Laser Small Laser Improved Assault Rifle Improved Assault Rifle Mini Grenade Launcher Mining Laser Peak State ------------ > --- POWER ------------ Ion Engine > --- PROPULSION ------- Light Treads Light Treads Light Treads > --- UTILITY ---------- Cargo Storage Unit Superbattery > --- WEAPON ----------- Improved Assault Rifle Improved Assault Rifle > --- INVENTORY -------- Ion Engine Ion Engine Improved Ion Engine Light Treads Light Treads Improved Treads Aluminum Leg High-capacity Storage Unit High-capacity Matter Pod Structural Scanner Signal Interpreter Improved Signal Interpreter Improved Signal Interpreter Seismic Detector Hardened Medium Armor Plating Hardened Medium Armor Plating Tractor Beam Small Laser Small Laser Improved Assault Rifle Improved Assault Rifle Mini Grenade Launcher Mini Grenade Launcher Mining Laser [Rating: 26] Favorites ----------- Power Ion Engine Engine Ion Engine Propulsion Light Treads Treads Light Treads Utility Cargo Storage Unit Device Improved Terrain Scanner Storage Cargo Storage Unit Processor Targeting Computer Protection Hardened Medium Armor Plating Weapon Improved Assault Rifle Energy Gun Medium Laser Energy Cannon Latent Energy Streamer Ballistic Gun Improved Assault Rifle Launcher Mini Grenade Launcher Special Weapon Mining Laser Build | -11 -10 -10 -9 -9 -9 -8 ------- Run | Yrd Mat Min Mat Min Exi Min Slots Evolved 2 | . . . 2 . . . Power . | . . . . . . . Propulsion 1 | . . . 1 . . . Utility 1 | . . . 1 . . . Weapon . | . . . . . . . Parts Attached 95 | 7 16 3 48 3 6 12 Power 4 | 1 . . 2 . . 1 Engine 4 | 1 . . 2 . . 1 Core . | . . . . . . . Reactor . | . . . . . . . Propulsion 16 | 2 . . 11 . . 3 Treads 16 | 2 . . 11 . . 3 Leg . | . . . . . . . Wheel . | . . . . . . . Hover . | . . . . . . . Flight . | . . . . . . . Utility 22 | 2 2 . 12 1 4 1 Device 1 | 1 . . . . . . Storage 6 | 1 1 . 3 . 1 . Processor 6 | . 1 . 4 . 1 . Hackware . | . . . . . . . Protection 9 | . . . 5 1 2 1 Artifact . | . . . . . . . Weapon 53 | 2 14 3 23 2 2 7 Energy Gun 10 | 1 5 . 4 . . . Energy Cannon 2 | . . . 1 . 1 . Ballistic Gun 24 | 1 5 2 11 1 1 3 Ballistic Cannon . | . . . . . . . Launcher 15 | . 3 1 6 1 . 4 Special Weapon 2 | . 1 . 1 . . . Impact Weapon . | . . . . . . . Slashing Weapon . | . . . . . . . Piercing Weapon . | . . . . . . . Special Melee Weapon . | . . . . . . . Unidentified Prototypes 5 | . . . 3 . 2 . Parts Lost 10 | . . . 5 . . 5 Power 2 | . . . 1 . . 1 Propulsion 7 | . . . 4 . . 3 Utility 1 | . . . . . . 1 Weapon . | . . . . . . . Highest Loss Streak 5 | . . . 2 . . 5 To Critical Strikes . | . . . . . . . Average Slot Usage (%) 91 | . 99 100 92 88 87 86 Engine 11 | . 14 14 11 11 11 10 Treads 31 | . 28 28 32 33 33 31 Storage 11 | . 14 14 11 11 11 11 Processor 6 | . 10 14 9 1 5 . Protection 5 | . . . 6 9 4 11 Energy Gun 2 | . 6 . 4 . . . Ballistic Gun 19 | . 21 27 17 21 22 16 Naked Turns . | . . . . . . . Heaviest Build 159 | 15 30 29 158 159 159 159 Greatest Support 63 | 40 40 40 60 60 60 63 Greatest Overweight (x) 3 | 3 . . 3 2 2 3 Average Overweight (x) 1 | . . . . 2 2 2 Largest Inventory Capacity 30 | 8 15 15 30 30 30 30 Average Capacity 24 | 7 13 15 25 30 30 30 Most Carried 30 | 2 15 15 28 24 30 24 Average Carried 19 | . 11 15 19 23 24 19 Final Capacity 30 | 8 15 15 30 30 30 30 Final Carried 24 | 2 15 15 24 24 24 19 Class Distribution -------------------- 65% | Hauler-Mutant 30% | Mutant 4% | Scavenger-Mutant Dominant Class ---------------- Mutant | -10/Materials Mutant | -10/Mines Hauler-Mutant | -9/Materials Hauler-Mutant | -9/Mines Hauler-Mutant | -9/Exiles Hauler-Mutant | -8/Mines Resources | -11 -10 -10 -9 -9 -9 -8 ----------- Run | Yrd Mat Min Mat Min Exi Min Matter Collected 2569 | 241 532 97 1283 145 . 271 Remotely . | . . . . . . . Salvage Created 3026 | 56 489 31 2160 62 . 228 Parts 191 | 7 34 4 127 2 . 17 Haulers Intercepted 8 | . 2 . 6 . . . Recyclers Shooed 1 | . . . 1 . . . Parts Field Recycled . | . . . . . . . Retrieved Matter . | . . . . . . . Parts Self-Destructed . | . . . . . . . Prevented . | . . . . . . . Kills | -11 -10 -10 -9 -9 -9 -8 ------- Run | Yrd Mat Min Mat Min Exi Min Combat Hostiles Destroyed 58 | . 9 3 31 5 . 10 Guns 29 | . 2 1 19 5 . 2 AOE 29 | . 7 2 12 . . 8 Classes Destroyed 13 | 1 7 . 4 1 . . Worker 7 | . 3 . 3 . . 1 Builder 1 | . . . 1 . . . Tunneler 3 | 2 1 . . . . . Hauler 8 | . 2 . 6 . . . Recycler 9 | . 1 . 7 . . 1 Operator 3 | . 1 . 2 . . . Watcher 7 | . 3 . 4 . . . Swarmer 17 | . 3 3 4 . . 7 Grunt 28 | . 6 . 17 1 . 4 Brawler 1 | . . . 1 . . . Duelist 1 | . . . 1 . . . Sentry 8 | . . . 8 . . . Assembled 4 | . . . . 4 . . Best Kill Streak 10 | 2 10 3 6 2 . 4 Combat Bots Only 4 | . 4 3 4 2 . 4 Max Kills in Single Turn 4 | 2 3 2 2 1 . 4 Gunslinging . | . . . . . . . Exploded 4 | . 2 2 2 . . 4 Melee . | . . . . . . . Uniques/NPCs Destroyed . | . . . . . . . Combat | -11 -10 -10 -9 -9 -9 -8 -------- Run | Yrd Mat Min Mat Min Exi Min Hostile Shots Fired 310 | . 24 10 192 23 . 61 Missed 72 | . 10 1 44 2 . 15 Damage Taken 3457 | . 226 77 1914 408 . 832 Core 459 | . 38 10 221 51 . 139 Absorbed by Shields . | . . . . . . . Core Remaining (%) 90 | 100 . 80 . . . . Volleys Fired 232 | 2 30 6 158 16 . 20 Largest 2 | 2 2 2 2 2 . 2 Hottest 150 | 60 100 50 150 53 . 53 Shots Fired 439 | 4 54 9 301 32 . 39 Gun 406 | 4 46 8 290 31 . 27 Cannon . | . . . . . . . Launcher 31 | . 7 1 10 1 . 12 Special 2 | . 1 . 1 . . . Kinetic 339 | 2 30 8 241 31 . 27 Thermal 60 | . 10 . 50 . . . Explosive 31 | . 7 1 10 1 . 12 Electromagnetic 9 | 2 7 . . . . . Robot Hit Streak 12 | 3 7 7 12 11 . 8 Robot Miss Streak 5 | . 5 2 5 3 . 2 Penetration Max . | . . . . . . . Secondary Targets 3 | . . . 3 . . . Max Gunslinging Chain 1 | . . . 1 . . . Shots Hit Robots 256 | 3 23 4 182 22 . 22 Core Hits 161 | 2 28 3 90 11 . 27 Critical Kills . | . . . . . . . Critical Parts Destroyed 3 | . . . 3 . . . Critical Strikes 6 | . . . 6 . . . Burn 3 | . . . 3 . . . Destroy 3 | . . . 3 . . . Melee Attacks . | . . . . . . . Impact . | . . . . . . . Slashing . | . . . . . . . Piercing . | . . . . . . . Sneak Attacks . | . . . . . . . Combat Hostiles . | . . . . . . . Follow-up Attacks . | . . . . . . . Damage Inflicted 6185 | 53 959 134 3475 442 . 1122 Guns 3553 | 53 311 54 2505 363 . 267 Cannons . | . . . . . . . Explosions 2632 | . 648 80 970 79 . 855 Melee . | . . . . . . . Ramming . | . . . . . . . Kinetic 3077 | 26 167 54 2200 363 . 267 Thermal 427 | . 122 . 305 . . . Explosive 2544 | . 560 80 970 79 . 855 Electromagnetic 137 | 27 110 . . . . . Impact . | . . . . . . . Slashing . | . . . . . . . Piercing . | . . . . . . . Highest Corruption 2 | . 2 2 . . . . Average Corruption 2 | . 2 2 . . . . Corruption Purged . | . . . . . . . Corruption Blocked . | . . . . . . . Effects 8 | . 4 4 . . . . Message Errors 3 | . 3 . . . . . Matter Fused 2 | . . 2 . . . . Heat Flow Errors 1 | . . 1 . . . . Energy Discharges 1 | . . 1 . . . . Misfires 1 | . 1 . . . . . Overload Shots . | . . . . . . . Overflow Damage 35 | . 15 . 20 . . . Projectiles . | . . . . . . . Explosions 35 | . 15 . 20 . . . Melee . | . . . . . . . Knockbacks . | . . . . . . . Impact . | . . . . . . . Kinetic . | . . . . . . . Secondary . | . . . . . . . Self-Inflicted Damage 176 | . 41 . . 30 . 105 Shots 5 | . 1 . . 1 . 3 Rammed . | . . . . . . . Targets Rammed . | . . . . . . . Kicked . | . . . . . . . Crushed . | . . . . . . . Highest Temperature 223 | . 20 223 111 45 . 97 Average Temperature 34 | . 7 124 27 19 . 56 Received Heat Transfer 1314 | . 21 . 810 114 . 369 Siege Activations . | . . . . . . . Robots Corrupted . | . . . . . . . Combat Hostiles . | . . . . . . . Parts Fried . | . . . . . . . Impact Corruptions . | . . . . . . . Robots Melted . | . . . . . . . Combat Hostiles . | . . . . . . . Parts Melted 3 | . . . 3 . . . Heat Transferred 1298 | . 175 . 1123 . . . Parts Sabotaged . | . . . . . . . Parts Stolen . | . . . . . . . Parts Stripped . | . . . . . . . Power Chain Reactions 2 | . 2 . . . . . Alert | -11 -10 -10 -9 -9 -9 -8 ------- Run | Yrd Mat Min Mat Min Exi Min Peak Influence 421 | 10 261 103 421 194 . 289 Initial 124 | . 6 1 39 124 . . Average 145 | 3 93 97 229 50 . 91 Maximum Alert Level 2 | . 1 . 2 . . 1 Low Security (%) 61 | 100 87 100 25 100 . 84 Level 1 37 | . 12 . 71 . . 15 Level 2 1 | . . . 3 . . . Level 3 . | . . . . . . . Level 4 . | . . . . . . . Level 5 . | . . . . . . . High Security . | . . . . . . . Max Security . | . . . . . . . Squads Dispatched 6 | . 2 . 4 . . . Investigation 3 | . 1 . 2 . . . Extermination . | . . . . . . . Reinforcement 3 | . 1 . 2 . . . Assault . | . . . . . . . Garrison . | . . . . . . . Intercept . | . . . . . . . Searches Triggered . | . . . . . . . Construction Impeded . | . . . . . . . Haulers Reinforced . | . . . . . . . Active Scanning Responses . | . . . . . . . Cargo Convoy Interrupts . | . . . . . . . Stealth | -11 -10 -10 -9 -9 -9 -8 --------- Run | Yrd Mat Min Mat Min Exi Min Distress Signals 8 | . . . 8 . . . Communications Jammed . | . . . . . . . Distress Signals . | . . . . . . . Times Spotted 86 | . 16 3 50 8 . 9 Peak Tracking Total 7 | . 3 3 7 3 . 3 Tactical Retreats 3 | . . . 1 2 . . Traps | -11 -10 -10 -9 -9 -9 -8 ------- Run | Yrd Mat Min Mat Min Exi Min Traps Triggered 4 | . 3 . 1 . . . Indirectly . | . . . . . . . Trap Hack Attempts . | . . . . . . . Triggered . | . . . . . . . Disarmed 1 | . . . 1 . . . Reprogrammed . | . . . . . . . Reused . | . . . . . . . Traps Extracted . | . . . . . . . Installed . | . . . . . . . Triggered 1 | . . 1 . . . . Machines | -11 -10 -10 -9 -9 -9 -8 ---------- Run | Yrd Mat Min Mat Min Exi Min Machines Disabled 4 | . . 1 2 . . 1 Max in Single Turn 1 | . . 1 1 . . 1 Machines Repaired . | . . . . . . . Machines Dismantled . | . . . . . . . Machines Sabotaged . | . . . . . . . Overloaded Fab Kills . | . . . . . . . Hacking | -11 -10 -10 -9 -9 -9 -8 --------- Run | Yrd Mat Min Mat Min Exi Min Machines Accessed 18 | . 5 . 11 . 2 . Terminals 13 | . 5 . 8 . . . Fabricators . | . . . . . . . Repair Stations . | . . . . . . . Recycling Units 2 | . . . 2 . . . Scanalyzers 1 | . . . 1 . . . Garrison Access . | . . . . . . . Total Hacks 55 | . 17 . 33 . 5 . Successful 26 | . 5 . 16 . 5 . Failed 29 | . 12 . 17 . . . Catastrophic 6 | . 4 . 2 . . . Database Lockouts . | . . . . . . . Manual 39 | . 13 . 25 . 1 . Terminals 45 | . 17 . 28 . . . Fabricators . | . . . . . . . Repair Stations . | . . . . . . . Recycling Units 4 | . . . 4 . . . Scanalyzers 1 | . . . 1 . . . Garrison Access . | . . . . . . . Terminal Hacks 18 | . 3 . 10 . 5 . Record 5 | . . . 1 . 4 . Branch Access Points 1 | . . . 1 . . . Emergency Access Points 1 | . . . 1 . . . Terminal Index 2 | . 1 . 1 . . . Alert Level 2 | . 1 . 1 . . . Unreport Threat 1 | . . . 1 . . . Disarm Traps 1 | . . . 1 . . . Recall Investigation 1 | . . . 1 . . . Hauler Manifests 2 | . . . 2 . . . Zone Layout 1 | . 1 . . . . . Derelict Proto ID Bank 1 | . . . . . 1 . Fabricator Hacks . | . . . . . . . Repair Station Hacks . | . . . . . . . Recycling Unit Hacks 2 | . . . 2 . . . Retrieve Components 2 | . . . 2 . . . Scanalyzer . | . . . . . . . Garrison Access Hacks . | . . . . . . . Unauthorized Hacks 6 | . 2 . 4 . . . Terminals 6 | . 2 . 4 . . . Botnet 6 | . 2 . 4 . . . Fabricators . | . . . . . . . Repair Stations . | . . . . . . . Recycling Units . | . . . . . . . Scanalyzers . | . . . . . . . Garrison Access . | . . . . . . . Data Cores Recovered . | . . . . . . . Used . | . . . . . . . Hacking Detections 11 | . 5 . 6 . . . Full Trace Events 4 | . 1 . 3 . . . Feedback Events . | . . . . . . . Feedback Blocked . | . . . . . . . Robot Schematics Acquired . | . . . . . . . Robots Built . | . . . . . . . Authchips . | . . . . . . . Time . | . . . . . . . Total Robot Build Rating . | . . . . . . . Part Schematics Acquired . | . . . . . . . Parts Built . | . . . . . . . Authchips . | . . . . . . . Time . | . . . . . . . Total Part Build Rating . | . . . . . . . Parts Repaired . | . . . . . . . Time . | . . . . . . . Parts Recycled . | . . . . . . . Recycled Matter . | . . . . . . . Retrieved Matter . | . . . . . . . Retrieved Components 19 | . . . 19 . . . Parts Scanalyzed . | . . . . . . . Part Schematics Acquired . | . . . . . . . Parts Damaged . | . . . . . . . Bothacking | -11 -10 -10 -9 -9 -9 -8 ------------ Run | Yrd Mat Min Mat Min Exi Min Used RIF Installer . | . . . . . . . Robots Hacked . | . . . . . . . Non-combat . | . . . . . . . Combat . | . . . . . . . Robot Hacks Applied . | . . . . . . . Relay Couplers Released . | . . . . . . . Fabnet Peak Effective % . | . . . . . . . Robots Rewired . | . . . . . . . Allies Hacked . | . . . . . . . Hacks Repelled . | . . . . . . . Allies | -11 -10 -10 -9 -9 -9 -8 -------- Run | Yrd Mat Min Mat Min Exi Min Total Allies 3 | . . . . 3 . . Largest Group 3 | . . . . 3 3 3 Highest-Rated Group 40 | . . . . 40 40 40 Highest-Rated Ally 16 | . . . . 16 16 16 Total Orders 5 | . . . . 5 . . FOLLOW 2 | . . . . 2 . . AID 3 | . . . . 3 . . Ally Attacks 22 | . . . . 5 . 17 Total Damage 267 | . . . . 71 . 196 Kills 4 | . . . . 2 . 2 Allies Corrupted . | . . . . . . . Allies Melted . | . . . . . . . Intel | -11 -10 -10 -9 -9 -9 -8 ------- Run | Yrd Mat Min Mat Min Exi Min Robot Analysis Total . | . . . . . . . Derelict Logs Recovered . | . . . . . . . Drone Launches . | . . . . . . . Drone Recoveries . | . . . . . . . Exploration | -11 -10 -10 -9 -9 -9 -8 ------------- Run | Yrd Mat Min Mat Min Exi Min Turns Passed 7937 | 107 1223 170 3083 1322 1202 830 Spaces Moved 2844 | 56 681 62 1060 382 371 232 Core 18 | 18 . . . . . . Treads 2826 | 38 681 62 1060 382 371 232 Legs . | . . . . . . . Wheels . | . . . . . . . Hover . | . . . . . . . Flight . | . . . . . . . Fastest Speed 50 | 50 160 160 160 320 320 320 Average Speed 242 | 160 160 160 231 320 320 325 Slowest Speed 400 | 200 160 160 400 320 320 400 Overloaded Moves . | . . . . . . . Propulsion Burnouts . | . . . . . . . Robots Hopped . | . . . . . . . Cave-ins Triggered . | . . . . . . . Exploration Rate (%) 50 | 4 88 12 69 63 62 54 Regions Visited 6 Branch Regions 4 Pre-discovered Areas . | . . . . . . . Known Exits Taken 2 | . . . 1 . 1 . Unknown Exits Taken 4 | 1 1 1 . 1 . . Scrap Searched 5 | . . 2 . 2 . 1 Spaces Dug 2 | . 1 . 1 . . . Terrain Destroyed 213 | . 55 14 35 14 . 95 Melee . | . . . . . . . Projectile 2 | . 1 . 1 . . . AOE 211 | . 54 14 34 14 . 95 Terrain Rammed . | . . . . . . . Walls Destroyed . | . . . . . . . Machines Disabled . | . . . . . . . Actions | -11 -10 -10 -9 -9 -9 -8 --------- Run | Yrd Mat Min Mat Min Exi Min Total 3434 | 66 756 122 1385 450 389 266 Wait 151 | . 6 52 40 49 4 . Move 2838 | 55 680 61 1059 381 370 232 Hop . | . . . . . . . Pick Up 73 | 2 17 . 49 1 3 1 Fast Attach 19 | 7 2 . 7 . 3 . Attach 22 | . . . 15 . 2 5 Detach 1 | . . . 1 . . . Swap 54 | . 14 3 26 3 1 7 Drop 44 | . 7 . 30 . 6 1 Fire 232 | 2 30 6 158 16 . 20 Melee . | . . . . . . . Ram . | . . . . . . . Kick . | . . . . . . . Crush . | . . . . . . . Escape Stasis . | . . . . . . . Rewire . | . . . . . . . Trap . | . . . . . . . Miscellaneous . | . . . . . . . Route ------- -11/Scrapyard -10/Materials (discovered 4 exits: *Mat x3 / [*Min]) -10/Mines -9/Materials (discovered 5 exits: *Mat x2 / *Min x2 / *Sto) -9/Mines (discovered 2 exits: *Mat / *Exi) -9/Exiles (discovered 2 exits: *Min x2) -8/Mines History --------- Turn | Location | Event 33 | -11/Scrapyard | Discovered new exit (range 16) 108 | -11/Scrapyard | Entered Materials 315 | -10/Materials | Build established: Mutant 505 | -10/Materials | Discovered new exit (range 11) 654 | -10/Materials | Discovered new exit (range 8) 844 | -10/Materials | Discovered new exit (range 16) 1037 | -10/Materials | Discovered new exit (range 16) 1331 | -10/Materials | Entered Mines 1380 | -10/Mines | Discovered new exit (range 12) 1399 | -10/Mines | YI-UF0 nonchalantly dropped a Grenade Launcher on the ground 1501 | -10/Mines | Entered Materials 1501 | -9/Materials | Evolved 2 slots: Propulsion x1, Utility x1 1931 | -9/Materials | Discovered new exit (range 15) 2199 | -9/Materials | Identified exit to Materials 2543 | -9/Materials | Discovered exit to Materials (range 13) 2705 | -9/Materials | Build established: Scavenger-Mutant 2941 | -9/Materials | Identified exit to Mines 2941 | -9/Materials | Identified exit to Storage 3063 | -9/Materials | Build established: Hauler-Mutant 4537 | -9/Materials | Core integrity fell below 50% 4584 | -9/Materials | Entered Mines 4771 | -9/Mines | Assembled infested the area 5057 | -9/Mines | Discovered exit to Materials (range 12) 5209 | -9/Mines | Assisted by bots powering up and referring to "LRC-V3" 5893 | -9/Mines | Deemed a non-threat by the Exiles lab entrance 5893 | -9/Mines | Discovered new exit (range 5) 5906 | -9/Mines | Entered Exiles 5906 | -9/Exiles | Accompanied by 3 allies 5993 | -9/Exiles | Met 8R-AWN 6047 | -9/Exiles | Met EX-HEX 6137 | -9/Exiles | Met EX-BIN 6194 | -9/Exiles | Aligned with FarCom system 6198 | -9/Exiles | Given EX-Vault access code 6274 | -9/Exiles | Opened EX-Vault 6294 | -9/Exiles | Found Prototype Storage 6295 | -9/Exiles | Identified Superbattery 6313 | -9/Exiles | Found Prototype Energy Cannon 6313 | -9/Exiles | Identified Latent Energy Streamer 6344 | -9/Exiles | Found Prototype Device 6354 | -9/Exiles | Identified Army-in-a-Box 6440 | -9/Exiles | Warned to stay clear of 0b10 Research branches 6531 | -9/Exiles | Met EX-DEC 6678 | -9/Exiles | Discovered new exit (range 14) 6713 | -9/Exiles | Identified exit to Mines 7065 | -9/Exiles | Discovered exit to Mines (range 14) 7108 | -9/Exiles | Left Exiles lab with Superbattery 7108 | -9/Exiles | Entered Mines 7108 | -8/Mines | Accompanied by 3 allies 7236 | -8/Mines | Core integrity fell below 20% 7277 | -8/Mines | Lost 5 parts (1p3n1u) 7277 | -8/Mines | Lost 3 allies 7938 | -8/Mines | Destroyed by G-47 Trooper with Particle Gun Last Messages --------------- Laser Drill disabled. S-10 Pest destroyed. U-05 Engineer lays Concrete. U-05 Engineer builds a Wall. Acquired 9 matter. Acquired 11 matter. Acquired 3 matter. S-10 Pest destroyed. Acquired 11 matter. The unstable cave ceiling collapses. Acquired 3 matter. Acquired 2 matter. K-01 Serf cleans the Pulverizer. K-01 Serf collects debris. U-05 Engineer builds a Wall. U-05 Engineer lays Concrete. T-07 Excavator is excavating. K-01 Serf collects debris. T-07 Excavator is excavating. G-47 Trooper destroyed. Map ----- +----------------------------------------------------+ | ?????????????????????????????????????????????????? | | ?????????????????????????????????????????????????? | | ?????????????????????????????????????????????????? | | ?????????????????????????????????????????????????? | | ????????????????????#??????????????????????? #???? | | ?????????????????? ??????????????????????? ##?? | | ????????????????? #??????????????????????? #? | | ?????????????????# #?????????????????????? # | | ?????????????????# #?????????????????????"" | | ?????????????????# ????????????????????""" | | ????????????????## ?????????????????????"" | | ????????????##### ?????????????????????? | | ???????????## #???????????????????????# | | ???????????? #????????????????????????# | | ?????????????? #???????????????????????## | | ??????????????? #???????????????????????# | | ????????????????? #???????????????????????# | | ??????????????????# #???????????????????????# # | | ???????????????????# #?????????????????????????? | | ???????????????????# ##????????????????????????? | | ??????????????####?## #????????????????????????? | | ???????????# # ## #????????????????????????? | | ????????##? ##????????????????????????# | | ??????? g ####???????????????????? | | ??????? #########???????????? | | ??????????# =%! b @ ## #????????????# | | ??????????# * ## #????????????# | | ?????????# # # ???# ############## | | ????????# ??#### ##????##### """ # | | ????????????????###??????????# """ ############ # | | ?????????????????????????????# """ #??????????# # | | ?????????????????????????????# #??????????# # | | ?????????????????????????????########??????????# | | ???????????????????????????????????????????????### | | ?????????????????????????????????????????????????? | | ?????????????????????????????????????????????????? | | ?????????????????????????????????????????????????? | | | | | | | | | | | | | | | | | | | | | | | | | | | +----------------------------------------------------+ Best States ------------- Heat Dissipation 28 Energy Generation 10 Energy Capacity 250 Matter Stores 300 Matter Capacity 300 Sight Range 16 Terrain Scan Range 16 Terrain Scan Density 10 Armor Coverage 225 Evasion (%) 40 Targeting Accuracy 5 Recoil Reduction 3 Item Schematics ----------------- None Robot Schematics ------------------ None Fabricated ------------ Nothing Alien Tech Used ----------------- None Achievements -------------- Backstab Packrat Quantum Hacking Tank Challenges ------------ None Game ------ Seed MissileHackingTearclaws Manual? 0 Play Time 01:05:17 Cumulative 24.7 hours Start 2024.06.30 @ 21:42:00 End 2024.06.30 @ 22:54:25 Sessions 1 Manual Loads 0 Difficulty Rogue Special Mode None Game No. 26 Rogue 25 Adventurer 1 Explorer 0 Win Type - Total 0 Types 0/0/0/0/0/0/0/0/0 Lore% 15 Gallery% 17 Achievement% 17 Wizard Run 0 Options --------- Layout 1 ASCII 0 Keyboard 0 Movement Mouse Keybinds 0 Fullscreen 2 Font 24/Smallcaps Map View 50x35 Zoom Use 0% Tactical HUD 0 Map Filters NONE Filters NONE Steam 1 RUN: 46818d65-d12a-44d8-a7fb-91ab1e3401ed